[Event "*** Titled Tuesday 3|2 Blitz"]
[Site "Chess.com"]
[Date "2015.10.06"]
[Round "7"]
[White "Konavets"]
[Black "Mornar1951"]
[Result "1-0"]
[WhiteElo "2533"]
[BlackElo "2608"]
[TimeControl "180+2"]
[EndTime "12:30:09 PDT"]
[Termination "Konavets won by checkmate"]

1. e4 {[%clk 0:03:01.9]} 1... c5 {[%clk 0:02:59.8]} 2. Nf3 {[%clk 0:03:03.1]}
2... e6 {[%clk 0:03:01.4]} 3. d4 {[%clk 0:03:04.4]} 3... cxd4 {[%clk 0:03:03.3]}
4. Bg5 {[%clk 0:03:04.7]} 4... Qa5+ {[%clk 0:02:53.9]} 5. c3 {[%clk 0:03:05.1]}
5... Nc6 {[%clk 0:02:50.9]} 6. Bd3 {[%clk 0:03:05.8]} 6... Be7 {[%clk
0:02:47.2]} 7. Bd2 {[%clk 0:03:05.1]} 7... Nf6 {[%clk 0:02:33.3]} 8. cxd4 {[%clk
0:03:05.3]} 8... Qb6 {[%clk 0:02:30.1]} 9. e5 {[%clk 0:03:02.8]} 9... Nd5 {[%clk
0:02:29.3]} 10. Nc3 {[%clk 0:03:00.8]} 10... Nxc3 {[%clk 0:02:25.2]} 11. bxc3
{[%clk 0:03:01.6]} 11... d6 {[%clk 0:02:25.8]} 12. exd6 {[%clk 0:02:59.8]} 12...
Bxd6 {[%clk 0:02:27.7]} 13. O-O {[%clk 0:03:01.1]} 13... Qc7 {[%clk 0:02:27.2]}
14. Re1 {[%clk 0:03:02.2]} 14... O-O {[%clk 0:02:17.7]} 15. Rb1 {[%clk
0:03:02.6]} 15... Bf4 {[%clk 0:02:14.7]} 16. Rb5 {[%clk 0:03:01.2]} 16... Bxd2
{[%clk 0:02:13.9]} 17. Qxd2 {[%clk 0:03:02.1]} 17... b6 {[%clk 0:02:07.3]} 18.
Rh5 {[%clk 0:02:33.4]} 18... h6 {[%clk 0:01:44.3]} 19. Re4 {[%clk 0:02:15.9]}
19... f5 {[%clk 0:01:28.9]} 20. Re1 {[%clk 0:02:15.4]} 20... Rf6 {[%clk
0:01:26.2]} 21. Bc4 {[%clk 0:02:08.9]} 21... Na5 {[%clk 0:01:23]} 22. Bb3 {[%clk
0:02:05.5]} 22... Nxb3 {[%clk 0:01:12.8]} 23. axb3 {[%clk 0:02:07.4]} 23... Bb7
{[%clk 0:01:14.1]} 24. Ne5 {[%clk 0:02:08.6]} 24... Rc8 {[%clk 0:01:10]} 25. Rh3
{[%clk 0:02:09.9]} 25... a5 {[%clk 0:01:07.4]} 26. Qf4 {[%clk 0:01:04.6]} 26...
b5 {[%clk 0:00:59]} 27. Rg3 {[%clk 0:00:53.1]} 27... Bd5 {[%clk 0:00:56.4]} 28.
Qh4 {[%clk 0:00:50.1]} 28... Kh7 {[%clk 0:00:53.2]} 29. c4 {[%clk 0:00:50.7]}
29... bxc4 {[%clk 0:00:50.7]} 30. bxc4 {[%clk 0:00:52.6]} 30... Be4 {[%clk
0:00:41.3]} 31. Qf4 {[%clk 0:00:46.8]} 31... g5 {[%clk 0:00:39.2]} 32. Qd2
{[%clk 0:00:45.5]} 32... Rd8 {[%clk 0:00:38.2]} 33. Qc3 {[%clk 0:00:33.9]} 33...
f4 {[%clk 0:00:37.7]} 34. Rxe4 {[%clk 0:00:32.6]} 34... fxg3 {[%clk 0:00:38.3]}
35. hxg3 {[%clk 0:00:34.5]} 35... Rdf8 {[%clk 0:00:36.7]} 36. Re2 {[%clk
0:00:32.9]} 36... Qb6 {[%clk 0:00:34.7]} 37. Nd7 {[%clk 0:00:31.2]} 37... Qb1+
{[%clk 0:00:35.5]} 38. Kh2 {[%clk 0:00:32.3]} 38... Rxf2 {[%clk 0:00:35.3]} 39.
Nxf8+ {[%clk 0:00:31.4]} 39... Rxf8 {[%clk 0:00:36.1]} 40. Re1 {[%clk 0:00:28]}
40... Qb4 {[%clk 0:00:33.1]} 41. Qd3+ {[%clk 0:00:28.6]} 41... Kg7 {[%clk
0:00:31.6]} 42. Rxe6 {[%clk 0:00:29.7]} 42... Rf6 {[%clk 0:00:31.2]} 43. Re5
{[%clk 0:00:26]} 43... a4 {[%clk 0:00:25.9]} 44. Rb5 {[%clk 0:00:26.3]} 44...
Qe1 {[%clk 0:00:24.7]} 45. Rb7+ {[%clk 0:00:26.8]} 45... Rf7 {[%clk 0:00:24.7]}
46. Rb6 {[%clk 0:00:28.3]} 46... Rf6 {[%clk 0:00:22.6]} 47. Rb7+ {[%clk
0:00:21.6]} 47... Rf7 {[%clk 0:00:23.6]} 48. Rxf7+ {[%clk 0:00:22.9]} 48... Kxf7
{[%clk 0:00:24.6]} 49. Qf5+ {[%clk 0:00:24.6]} 49... Ke7 {[%clk 0:00:22.2]} 50.
Qc5+ {[%clk 0:00:25.5]} 50... Ke8 {[%clk 0:00:20.7]} 51. Qc6+ {[%clk 0:00:25.8]}
51... Kf7 {[%clk 0:00:20.9]} 52. Qxa4 {[%clk 0:00:27.1]} 52... Qd2 {[%clk
0:00:19.9]} 53. Qd7+ {[%clk 0:00:28]} 53... Kg6 {[%clk 0:00:20.8]} 54. Qe6+
{[%clk 0:00:29.2]} 54... Kh5 {[%clk 0:00:21.2]} 55. g4+ {[%clk 0:00:22.4]} 55...
Kh4 {[%clk 0:00:18.8]} 56. Qxh6+ {[%clk 0:00:24.3]} 56... Kxg4 {[%clk 0:00:20]}
57. Qh3+ {[%clk 0:00:26.2]} 57... Kf4 {[%clk 0:00:21.3]} 58. Qf3# {[%clk
0:00:28.1]} 1-0

[Event "*** Titled Tuesday 3|2 Blitz"]
[Site "Chess.com"]
[Date "2015.10.06"]
[Round "7"]
[White "E-Shaposhnikov"]
[Black "tac49"]
[Result "1/2-1/2"]
[WhiteElo "2545"]
[BlackElo "2472"]
[TimeControl "180+2"]
[EndTime "12:31:06 PDT"]
[Termination "Game drawn by agreement"]

1. e4 {[%clk 0:02:51.8]} 1... e5 {[%clk 0:02:59.4]} 2. Nf3 {[%clk 0:02:48.9]}
2... Nc6 {[%clk 0:02:59.6]} 3. Bc4 {[%clk 0:02:46.1]} 3... Nf6 {[%clk
0:02:59.2]} 4. d3 {[%clk 0:02:41.2]} 4... Be7 {[%clk 0:02:59.2]} 5. O-O {[%clk
0:02:39.4]} 5... O-O {[%clk 0:03:00.5]} 6. Re1 {[%clk 0:02:40.9]} 6... d6 {[%clk
0:03:00.8]} 7. a4 {[%clk 0:02:40.8]} 7... Kh8 {[%clk 0:02:59.6]} 8. Nc3 {[%clk
0:02:41.9]} 8... Ng8 {[%clk 0:03:00.2]} 9. Nd5 {[%clk 0:02:39.5]} 9... f5 {[%clk
0:02:58.7]} 10. c3 {[%clk 0:02:41]} 10... fxe4 {[%clk 0:02:53.1]} 11. dxe4
{[%clk 0:02:42.5]} 11... Bg4 {[%clk 0:02:52.4]} 12. Be2 {[%clk 0:02:43.2]} 12...
Nf6 {[%clk 0:02:28.8]} 13. Ne3 {[%clk 0:02:40]} 13... Be6 {[%clk 0:02:24.3]} 14.
Ng5 {[%clk 0:02:31.4]} 14... Bg8 {[%clk 0:02:23.6]} 15. Bc4 {[%clk 0:02:32.9]}
15... Qd7 {[%clk 0:01:18.6]} 16. Bxg8 {[%clk 0:02:19.5]} 16... Nxg8 {[%clk
0:01:20.5]} 17. Nd5 {[%clk 0:02:19.2]} 17... Bxg5 {[%clk 0:01:19.7]} 18. Bxg5
{[%clk 0:02:20.4]} 18... Nge7 {[%clk 0:01:15.3]} 19. Nxe7 {[%clk 0:02:07.8]}
19... Nxe7 {[%clk 0:01:16]} 20. Qb3 {[%clk 0:02:07]} 20... b6 {[%clk 0:01:02.6]}
21. f3 {[%clk 0:02:07.8]} 21... a5 {[%clk 0:01:02.5]} 22. Qb5 {[%clk 0:02:04.9]}
22... Qxb5 {[%clk 0:00:59.4]} 23. axb5 {[%clk 0:02:05.8]} 23... Ng6 {[%clk
0:01:00.4]} 24. Ra4 {[%clk 0:02:04.7]} 24... Nf4 {[%clk 0:00:57.6]} 25. Bxf4
{[%clk 0:02:05.6]} 25... exf4 {[%clk 0:00:54.9]} 26. b4 {[%clk 0:02:06.7]} 26...
axb4 {[%clk 0:00:55]} 27. Rxb4 {[%clk 0:02:05.1]} 27... Kg8 {[%clk 0:00:48.3]}
28. Rc4 {[%clk 0:02:03.6]} 28... Ra7 {[%clk 0:00:45.4]} 29. e5 {[%clk
0:02:00.3]} 29... Re8 {[%clk 0:00:36.8]} 30. Rxf4 {[%clk 0:01:48.8]} 30... Rxe5
{[%clk 0:00:36.8]} 31. Rxe5 {[%clk 0:01:49]} 31... dxe5 {[%clk 0:00:38.7]} 32.
Re4 {[%clk 0:01:47.2]} 32... Ra3 {[%clk 0:00:39.1]} 33. Rc4 {[%clk 0:01:42]}
33... Rb3 {[%clk 0:00:37.1]} 34. Rxc7 {[%clk 0:01:42.4]} 34... Rxb5 {[%clk
0:00:37.9]} 35. Kf2 {[%clk 0:01:44]} 35... Rb2+ {[%clk 0:00:33.7]} 36. Kg3
{[%clk 0:01:45.1]} 36... Rc2 {[%clk 0:00:33.5]} 37. h4 {[%clk 0:01:40.4]} 37...
h5 {[%clk 0:00:32.6]} 38. Kh3 {[%clk 0:01:36.9]} 38... Kh7 {[%clk 0:00:33]} 39.
Rc6 {[%clk 0:01:34.3]} 39... g6 {[%clk 0:00:30.9]} 40. g4 {[%clk 0:01:34.4]}
40... hxg4+ {[%clk 0:00:26.7]} 41. fxg4 {[%clk 0:01:35.7]} 41... e4 {[%clk
0:00:27.2]} 42. Rc7+ {[%clk 0:01:36.2]} 42... Kg8 {[%clk 0:00:27.1]} 43. Kg3
{[%clk 0:01:37.7]} 43... e3 {[%clk 0:00:27.8]} 44. Kf3 {[%clk 0:01:37.4]} 44...
e2 {[%clk 0:00:28.9]} 45. Kf2 {[%clk 0:01:38.5]} 45... Kf8 {[%clk 0:00:24.8]}
46. Rc6 {[%clk 0:01:39.1]} 46... Kg7 {[%clk 0:00:25.6]} 47. g5 {[%clk
0:01:33.8]} 47... Kf7 {[%clk 0:00:25.5]} 48. Ke1 {[%clk 0:01:33.9]} 48... Kg7
{[%clk 0:00:24.5]} 49. Rc7+ {[%clk 0:01:31.7]} 49... Kf8 {[%clk 0:00:25.1]} 50.
Rc6 {[%clk 0:01:25.9]} 50... Kf7 {[%clk 0:00:26]} 51. Rf6+ {[%clk 0:01:22.7]}
51... Kg7 {[%clk 0:00:26.8]} 52. Rf3 {[%clk 0:01:18.1]} 52... b5 {[%clk
0:00:21.2]} 53. Re3 {[%clk 0:01:18.6]} 53... Kf7 {[%clk 0:00:19.4]} 54. Kf2
{[%clk 0:01:18.9]} 54... Kf8 {[%clk 0:00:18.6]} 55. Re6 {[%clk 0:01:13.9]} 55...
Rxc3 {[%clk 0:00:17.3]} 56. Rxg6 {[%clk 0:01:10]} 56... Re3 {[%clk 0:00:17.7]}
57. Ke1 {[%clk 0:01:09.2]} 57... b4 {[%clk 0:00:18.9]} 58. h5 {[%clk 0:01:08.6]}
58... b3 {[%clk 0:00:19]} 59. Rb6 {[%clk 0:01:10.2]} 59... Rh3 {[%clk
0:00:16.2]} 60. Rb8+ {[%clk 0:01:09.1]} 60... Kf7 {[%clk 0:00:16.2]} 61. g6+
{[%clk 0:01:07.2]} 61... Kf6 {[%clk 0:00:16.4]} 62. Rb6+ {[%clk 0:01:07.4]}
62... Kg7 {[%clk 0:00:16.7]} 63. Rb7+ {[%clk 0:01:08.6]} 63... Kf6 {[%clk
0:00:17]} 64. Rf7+ {[%clk 0:01:08.1]} 64... Ke6 {[%clk 0:00:17.4]} 65. Rb7
{[%clk 0:00:48]} 65... Rxh5 {[%clk 0:00:17.8]} 66. Kxe2 {[%clk 0:00:49.1]} 66...
Rg5 {[%clk 0:00:18.4]} 67. g7 {[%clk 0:00:49.4]} 67... Kf6 {[%clk 0:00:19.4]}
68. Rxb3 {[%clk 0:00:51]} 68... Rxg7 {[%clk 0:00:20.1]} 1/2-1/2

[Event "*** Titled Tuesday 3|2 Blitz"]
[Site "Chess.com"]
[Date "2015.10.06"]
[Round "7"]
[White "ChessTrener"]
[Black "Keranke"]
[Result "1/2-1/2"]
[WhiteElo "2486"]
[BlackElo "2578"]
[TimeControl "180+2"]
[EndTime "12:31:47 PDT"]
[Termination "Game drawn by agreement"]

1. d4 {[%clk 0:03:01.6]} 1... g6 {[%clk 0:02:59.2]} 2. e4 {[%clk 0:02:59.2]}
2... Bg7 {[%clk 0:03:00.5]} 3. Nc3 {[%clk 0:02:59.1]} 3... d6 {[%clk 0:03:01.9]}
4. Bg5 {[%clk 0:02:59]} 4... a6 {[%clk 0:03:03.1]} 5. Nf3 {[%clk 0:02:57]} 5...
b5 {[%clk 0:03:04.3]} 6. a4 {[%clk 0:02:55.9]} 6... b4 {[%clk 0:03:04]} 7. Ne2
{[%clk 0:02:57.4]} 7... Bb7 {[%clk 0:03:04.4]} 8. Ng3 {[%clk 0:02:58.5]} 8...
Nd7 {[%clk 0:03:05]} 9. Bc4 {[%clk 0:02:58.7]} 9... c5 {[%clk 0:02:58]} 10. O-O
{[%clk 0:02:51.7]} 10... cxd4 {[%clk 0:02:57]} 11. Nxd4 {[%clk 0:02:52.2]} 11...
Ngf6 {[%clk 0:02:57.4]} 12. Qe2 {[%clk 0:02:52.9]} 12... O-O {[%clk 0:02:56.6]}
13. Rad1 {[%clk 0:02:53]} 13... Qa5 {[%clk 0:02:55.9]} 14. Bc1 {[%clk
0:02:48.2]} 14... Qxa4 {[%clk 0:02:48.5]} 15. f4 {[%clk 0:02:43.8]} 15... Qa5
{[%clk 0:02:46.2]} 16. Kh1 {[%clk 0:02:23.7]} 16... Rac8 {[%clk 0:02:36.2]} 17.
b3 {[%clk 0:02:11.7]} 17... d5 {[%clk 0:02:35.9]} 18. exd5 {[%clk 0:02:09.9]}
18... Nxd5 {[%clk 0:02:36.3]} 19. Bxd5 {[%clk 0:02:08.3]} 19... Qxd5 {[%clk
0:02:32.5]} 20. Ndf5 {[%clk 0:02:04.5]} 20... Qxg2+ {[%clk 0:02:10.7]} 21. Qxg2
{[%clk 0:02:04]} 21... Bxg2+ {[%clk 0:02:12.6]} 22. Kxg2 {[%clk 0:02:05.2]}
22... gxf5 {[%clk 0:02:12.8]} 23. Rxd7 {[%clk 0:02:04.2]} 23... Rxc2+ {[%clk
0:02:13.8]} 24. Rd2 {[%clk 0:01:53.6]} 24... Rfc8 {[%clk 0:02:10.5]} 25. Nxf5
{[%clk 0:01:40.1]} 25... Bf6 {[%clk 0:01:31.2]} 26. Rxc2 {[%clk 0:00:57.1]}
26... Rxc2+ {[%clk 0:01:33.1]} 27. Kf3 {[%clk 0:00:58]} 27... Rc3+ {[%clk
0:01:34]} 28. Be3 {[%clk 0:00:54]} 28... Rxb3 {[%clk 0:01:24]} 29. Ke4 {[%clk
0:00:54.3]} 29... a5 {[%clk 0:01:12.1]} 30. Rd1 {[%clk 0:00:50.3]} 30... e6
{[%clk 0:00:52.7]} 31. Rg1+ {[%clk 0:00:47.7]} 31... Kh8 {[%clk 0:00:43.8]} 32.
Nd6 {[%clk 0:00:42.5]} 32... h5 {[%clk 0:00:44.9]} 33. Nxf7+ {[%clk 0:00:41.3]}
33... Kh7 {[%clk 0:00:46.5]} 34. Ng5+ {[%clk 0:00:38.4]} 34... Kh8 {[%clk
0:00:43.6]} 35. Nxe6 {[%clk 0:00:36.8]} 35... a4 {[%clk 0:00:43.2]} 36. Bd4
{[%clk 0:00:30.1]} 36... Bxd4 {[%clk 0:00:44]} 37. Nxd4 {[%clk 0:00:32]} 37...
Rb2 {[%clk 0:00:42.8]} 38. h4 {[%clk 0:00:22.9]} 38... a3 {[%clk 0:00:44]} 39.
Ra1 {[%clk 0:00:22]} 39... Kg7 {[%clk 0:00:32.8]} 40. Ke5 {[%clk 0:00:21.2]}
40... Kf7 {[%clk 0:00:31.3]} 41. f5 {[%clk 0:00:22.5]} 41... a2 {[%clk
0:00:23.5]} 42. f6 {[%clk 0:00:16.5]} 42... b3 {[%clk 0:00:19.4]} 43. Rg1 {[%clk
0:00:13.3]} 43... Rg2 {[%clk 0:00:11.9]} 44. Rxg2 {[%clk 0:00:12.2]} 44... a1=Q
{[%clk 0:00:13.3]} 45. Rg7+ {[%clk 0:00:13.4]} 45... Kf8 {[%clk 0:00:14.6]} 46.
Kd5 {[%clk 0:00:12.1]} 46... Qa5+ {[%clk 0:00:13.9]} 47. Ke4 {[%clk 0:00:13]}
47... Qe1+ {[%clk 0:00:13.6]} 48. Kd5 {[%clk 0:00:13.6]} 48... b2 {[%clk
0:00:11.8]} 49. Ne6+ {[%clk 0:00:07.9]} 49... Qxe6+ {[%clk 0:00:13]} 50. Kxe6
{[%clk 0:00:09.8]} 50... b1=Q {[%clk 0:00:14.9]} 51. Rf7+ {[%clk 0:00:11.4]}
51... Ke8 {[%clk 0:00:15]} 52. Re7+ {[%clk 0:00:12.5]} 52... Kf8 {[%clk
0:00:15.9]} 53. Rf7+ {[%clk 0:00:13.6]} 53... Kg8 {[%clk 0:00:15.1]} 54. Rg7+
{[%clk 0:00:14.8]} 54... Kh8 {[%clk 0:00:15.5]} 55. Rg5 {[%clk 0:00:15.8]} 55...
Qe4+ {[%clk 0:00:16.4]} 56. Kf7 {[%clk 0:00:16.1]} 56... Qxh4 {[%clk 0:00:12]}
57. Kg6 {[%clk 0:00:15.4]} 57... Kg8 {[%clk 0:00:08.4]} 58. Rxh5 {[%clk
0:00:13.7]} 58... Qe4+ {[%clk 0:00:09.5]} 59. Rf5 {[%clk 0:00:11.6]} 59... Kf8
{[%clk 0:00:09.5]} 60. f7 {[%clk 0:00:11.5]} 60... Qe6+ {[%clk 0:00:05.1]} 61.
Kg5 {[%clk 0:00:10.5]} 61... Qe3+ {[%clk 0:00:06.4]} 62. Kg6 {[%clk 0:00:11.3]}
62... Qe4 {[%clk 0:00:04.7]} 63. Kg5 {[%clk 0:00:03.9]} 1/2-1/2

[Event "*** Titled Tuesday 3|2 Blitz"]
[Site "Chess.com"]
[Date "2015.10.06"]
[Round "7"]
[White "alexsuper1987"]
[Black "Bab3s"]
[Result "1-0"]
[WhiteElo "2187"]
[BlackElo "2110"]
[TimeControl "180+2"]
[EndTime "12:33:24 PDT"]
[Termination "alexsuper1987 won by checkmate"]

1. e4 {[%clk 0:03:01.9]} 1... e5 {[%clk 0:02:59.9]} 2. d4 {[%clk 0:03:02.7]}
2... exd4 {[%clk 0:02:58.8]} 3. Nf3 {[%clk 0:03:04.4]} 3... Nc6 {[%clk
0:02:58.6]} 4. c3 {[%clk 0:03:06]} 4... dxc3 {[%clk 0:02:47.7]} 5. Nxc3 {[%clk
0:03:07.9]} 5... d6 {[%clk 0:02:48.7]} 6. Bc4 {[%clk 0:03:08.6]} 6... Nf6 {[%clk
0:02:43.1]} 7. Ng5 {[%clk 0:03:08.9]} 7... Ne5 {[%clk 0:02:42]} 8. Bb3 {[%clk
0:03:10.4]} 8... h6 {[%clk 0:02:40.8]} 9. f4 {[%clk 0:03:12]} 9... hxg5 {[%clk
0:02:01.7]} 10. fxe5 {[%clk 0:03:13.3]} 10... Ng4 {[%clk 0:02:02.4]} 11. e6
{[%clk 0:03:14.6]} 11... Ne5 {[%clk 0:01:05.4]} 12. exf7+ {[%clk 0:02:54.1]}
12... Nxf7 {[%clk 0:01:05.2]} 13. Bxf7+ {[%clk 0:02:48.1]} 13... Kxf7 {[%clk
0:01:05.3]} 14. O-O+ {[%clk 0:02:48.2]} 14... Kg8 {[%clk 0:00:51.4]} 15. Qd5+
{[%clk 0:02:09.6]} 15... Kh7 {[%clk 0:00:51.5]} 16. Bxg5 {[%clk 0:02:05.3]}
16... Be7 {[%clk 0:00:43.6]} 17. Bxe7 {[%clk 0:02:06.4]} 17... Qxe7 {[%clk
0:00:45]} 18. Rf7 {[%clk 0:02:08.3]} 18... Qe5 {[%clk 0:00:22.8]} 19. Rxc7
{[%clk 0:02:01.7]} 19... Be6 {[%clk 0:00:19.2]} 20. Qxe5 {[%clk 0:01:44.1]}
20... dxe5 {[%clk 0:00:21.1]} 21. Rxb7 {[%clk 0:01:46]} 21... Rhd8 {[%clk
0:00:15.5]} 22. Rd1 {[%clk 0:01:41.5]} 22... Rxd1+ {[%clk 0:00:15.7]} 23. Nxd1
{[%clk 0:01:43]} 23... Rc8 {[%clk 0:00:17]} 24. Nc3 {[%clk 0:01:43.5]} 24... a6
{[%clk 0:00:13.4]} 25. Kf2 {[%clk 0:01:42.4]} 25... Rd8 {[%clk 0:00:12.6]} 26.
Ke3 {[%clk 0:01:42.4]} 26... Rd6 {[%clk 0:00:09.3]} 27. h3 {[%clk 0:01:39.5]}
27... Kg6 {[%clk 0:00:09.3]} 28. g4 {[%clk 0:01:40.2]} 28... Kf6 {[%clk
0:00:09.5]} 29. h4 {[%clk 0:01:39.3]} 29... Bf7 {[%clk 0:00:05.7]} 30. g5+
{[%clk 0:01:39.3]} 30... Ke6 {[%clk 0:00:04.6]} 31. Nd5 {[%clk 0:01:34.4]} 31...
Rc6 {[%clk 0:00:03.7]} 32. Re7+ {[%clk 0:01:23.8]} 32... Kd6 {[%clk 0:00:03.8]}
33. Rxf7 {[%clk 0:01:25]} 33... Rc2 {[%clk 0:00:04.5]} 34. Rb7 {[%clk
0:01:20.1]} 34... Rh2 {[%clk 0:00:04.5]} 35. Rxg7 {[%clk 0:01:16.5]} 35... Rxh4
{[%clk 0:00:05.1]} 36. Rg6+ {[%clk 0:01:16.7]} 36... Kc5 {[%clk 0:00:05]} 37.
Rxa6 {[%clk 0:01:16.6]} 37... Rh3+ {[%clk 0:00:06.9]} 38. Ke2 {[%clk 0:01:14.4]}
38... Rh2+ {[%clk 0:00:07.8]} 39. Kf3 {[%clk 0:01:15.1]} 39... Rxb2 {[%clk
0:00:09.7]} 40. g6 {[%clk 0:01:14.3]} 40... Rb1 {[%clk 0:00:10.9]} 41. g7 {[%clk
0:01:11.5]} 41... Rg1 {[%clk 0:00:11.7]} 42. Ra7 {[%clk 0:01:12.6]} 42... Kd4
{[%clk 0:00:12.7]} 43. Nf6 {[%clk 0:01:09.2]} 43... Rg6 {[%clk 0:00:09]} 44.
g8=N {[%clk 0:01:08.3]} 44... Rg1 {[%clk 0:00:08.4]} 45. Rd7+ {[%clk 0:01:08.1]}
45... Kc4 {[%clk 0:00:08.2]} 46. Ng4 {[%clk 0:01:08.5]} 46... Ra1 {[%clk
0:00:08.5]} 47. Rd2 {[%clk 0:01:07.9]} 47... Rf1+ {[%clk 0:00:06.5]} 48. Nf2
{[%clk 0:01:08]} 48... Ra1 {[%clk 0:00:07.1]} 49. Nf6 {[%clk 0:01:08.5]} 49...
Rb1 {[%clk 0:00:06.5]} 50. Nd5 {[%clk 0:01:07.7]} 50... Ra1 {[%clk 0:00:06.8]}
51. Ne3+ {[%clk 0:01:08.9]} 51... Kc5 {[%clk 0:00:07.8]} 52. Neg4 {[%clk
0:01:08.9]} 52... Rb1 {[%clk 0:00:04.1]} 53. Nxe5 {[%clk 0:01:09]} 53... Kb5
{[%clk 0:00:06]} 54. Nd7 {[%clk 0:01:09.2]} 54... Ka4 {[%clk 0:00:06.4]} 55. e5
{[%clk 0:01:10.4]} 55... Ka5 {[%clk 0:00:05.7]} 56. e6 {[%clk 0:01:11.6]} 56...
Ka4 {[%clk 0:00:06.3]} 57. e7 {[%clk 0:01:12.8]} 57... Re1 {[%clk 0:00:08]} 58.
Re2 {[%clk 0:01:11.8]} 58... Rc1 {[%clk 0:00:07.7]} 59. e8=B {[%clk 0:01:11.7]}
59... Rc3+ {[%clk 0:00:09]} 60. Re3 {[%clk 0:01:11.9]} 60... Rc4 {[%clk
0:00:09.7]} 61. Nb6+ {[%clk 0:01:11.2]} 61... Kb4 {[%clk 0:00:10.2]} 62. Nxc4
{[%clk 0:01:11.2]} 62... Kxc4 {[%clk 0:00:12.1]} 63. a4 {[%clk 0:01:11.6]} 63...
Kc5 {[%clk 0:00:14]} 64. a5 {[%clk 0:01:09.7]} 64... Kd6 {[%clk 0:00:14.5]} 65.
Ra3 {[%clk 0:01:10.2]} 65... Kc7 {[%clk 0:00:16.4]} 66. Bb5 {[%clk 0:01:11.1]}
66... Kb8 {[%clk 0:00:18.3]} 67. Ke4 {[%clk 0:01:12.4]} 67... Ka7 {[%clk
0:00:20.2]} 68. Kd5 {[%clk 0:01:13.7]} 68... Kb8 {[%clk 0:00:22.1]} 69. Kc5
{[%clk 0:01:15]} 69... Ka7 {[%clk 0:00:24]} 70. Ne4 {[%clk 0:01:16.3]} 70... Kb8
{[%clk 0:00:25.9]} 71. Nd6 {[%clk 0:01:17.3]} 71... Ka7 {[%clk 0:00:27.8]} 72.
Nc4 {[%clk 0:01:18.6]} 72... Kb8 {[%clk 0:00:29.7]} 73. Rh3 {[%clk 0:01:19.7]}
73... Ka7 {[%clk 0:00:31.6]} 74. Rh6 {[%clk 0:01:20.9]} 74... Kb8 {[%clk
0:00:33.5]} 75. Kb6 {[%clk 0:01:21.3]} 75... Kc8 {[%clk 0:00:32.8]} 76. a6
{[%clk 0:01:22.4]} 76... Kd8 {[%clk 0:00:33.1]} 77. a7 {[%clk 0:01:22.8]} 77...
Ke7 {[%clk 0:00:34]} 78. Rc6 {[%clk 0:01:22.7]} 78... Kf7 {[%clk 0:00:34.1]} 79.
Kc7 {[%clk 0:01:23]} 79... Ke7 {[%clk 0:00:34.7]} 80. a8=R {[%clk 0:01:21.7]}
80... Kf7 {[%clk 0:00:35]} 81. Kd7 {[%clk 0:01:23.1]} 81... Kg7 {[%clk
0:00:35.6]} 82. Ke7 {[%clk 0:01:24.2]} 82... Kh7 {[%clk 0:00:36.5]} 83. Rh8+
{[%clk 0:01:23.2]} 83... Kxh8 {[%clk 0:00:35.5]} 84. Kf7 {[%clk 0:01:23.5]}
84... Kh7 {[%clk 0:00:36.4]} 85. Rh6+ {[%clk 0:01:24.5]} 85... Kxh6 {[%clk
0:00:37.1]} 86. Kf6 {[%clk 0:01:25.4]} 86... Kh5 {[%clk 0:00:37.8]} 87. Ne3
{[%clk 0:01:26]} 87... Kh4 {[%clk 0:00:38.5]} 88. Kf5 {[%clk 0:01:25.8]} 88...
Kh5 {[%clk 0:00:38.9]} 89. Bf1 {[%clk 0:01:23.3]} 89... Kh6 {[%clk 0:00:39.4]}
90. Be2 {[%clk 0:01:23.4]} 90... Kh7 {[%clk 0:00:40.3]} 91. Nd5 {[%clk
0:01:24.6]} 91... Kh8 {[%clk 0:00:41.4]} 92. Kf6 {[%clk 0:01:25]} 92... Kg8
{[%clk 0:00:42.6]} 93. Ne7+ {[%clk 0:01:24.6]} 93... Kh8 {[%clk 0:00:44.5]} 94.
Ng6+ {[%clk 0:01:25.2]} 94... Kg8 {[%clk 0:00:45]} 95. Bc4+ {[%clk 0:01:25.9]}
95... Kh7 {[%clk 0:00:45.5]} 96. Bf7 {[%clk 0:01:25.4]} 96... Kh6 {[%clk
0:00:45.8]} 97. Bg8 {[%clk 0:01:23.4]} 97... Kh5 {[%clk 0:00:46.2]} 98. Ne5
{[%clk 0:01:25]} 98... Kh6 {[%clk 0:00:46.7]} 99. Ng4+ {[%clk 0:01:25.3]} 99...
Kh5 {[%clk 0:00:47.1]} 100. Kf5 {[%clk 0:01:25.2]} 100... Kh4 {[%clk 0:00:46.6]}
101. Kf4 {[%clk 0:01:26.5]} 101... Kh5 {[%clk 0:00:47.1]} 102. Bf7+ {[%clk
0:01:27.4]} 102... Kh4 {[%clk 0:00:46.8]} 103. Bg6 {[%clk 0:01:29.1]} 103... Kh3
{[%clk 0:00:47]} 104. Ne3 {[%clk 0:01:29.3]} 104... Kh4 {[%clk 0:00:45.8]} 105.
Ng2+ {[%clk 0:01:29.5]} 105... Kh3 {[%clk 0:00:46.1]} 106. Kf3 {[%clk
0:01:30.2]} 106... Kh2 {[%clk 0:00:46.6]} 107. Bf5 {[%clk 0:01:26.2]} 107... Kg1
{[%clk 0:00:42.9]} 108. Ne3 {[%clk 0:01:26.2]} 108... Kh2 {[%clk 0:00:43]} 109.
Kf2 {[%clk 0:01:24.5]} 109... Kh1 {[%clk 0:00:41.7]} 110. Be6 {[%clk 0:01:24.4]}
110... Kh2 {[%clk 0:00:41.9]} 111. Nf1+ {[%clk 0:01:25.7]} 111... Kh1 {[%clk
0:00:41.2]} 112. Bd5# {[%clk 0:01:27.3]} 1-0

[Event "*** Titled Tuesday 3|2 Blitz"]
[Site "Chess.com"]
[Date "2015.10.06"]
[Round "8"]
[White "Dlugy"]
[Black "facu57"]
[Result "0-1"]
[WhiteElo "2548"]
[BlackElo "2506"]
[TimeControl "180+2"]
[EndTime "12:36:34 PDT"]
[Termination "facu57 won by checkmate"]

1. d4 {[%clk 0:03:01.9]} 1... Nf6 {[%clk 0:02:57.6]} 2. Bf4 {[%clk 0:03:02.8]}
2... g6 {[%clk 0:02:54.5]} 3. Nc3 {[%clk 0:03:03]} 3... d5 {[%clk 0:02:55]} 4.
Qd2 {[%clk 0:03:04]} 4... c6 {[%clk 0:02:52.7]} 5. f3 {[%clk 0:03:04.2]} 5...
Bg7 {[%clk 0:02:48.6]} 6. Bh6 {[%clk 0:03:02.1]} 6... Bxh6 {[%clk 0:02:44.5]} 7.
Qxh6 {[%clk 0:03:03]} 7... Qa5 {[%clk 0:02:46.4]} 8. O-O-O {[%clk 0:03:04]} 8...
b5 {[%clk 0:02:43.9]} 9. e4 {[%clk 0:02:54.7]} 9... b4 {[%clk 0:02:44.8]} 10.
Nb1 {[%clk 0:02:49.4]} 10... Qxa2 {[%clk 0:02:40.8]} 11. e5 {[%clk 0:02:50.3]}
11... Nfd7 {[%clk 0:02:37.8]} 12. Qg7 {[%clk 0:02:49.5]} 12... Rf8 {[%clk
0:02:36]} 13. Qxh7 {[%clk 0:02:50.7]} 13... Nb6 {[%clk 0:02:24.3]} 14. b3 {[%clk
0:02:35.1]} 14... a5 {[%clk 0:02:19]} 15. Bd3 {[%clk 0:02:32.5]} 15... a4 {[%clk
0:02:18.7]} 16. bxa4 {[%clk 0:02:33.6]} 16... b3 {[%clk 0:02:12]} 17. Ne2 {[%clk
0:02:28.3]} 17... Nc4 {[%clk 0:02:05.6]} 18. Bxc4 {[%clk 0:02:28.1]} 18... Qxc2#
{[%clk 0:02:05.3]} 0-1